bitfinex-derivatives/quotes_SOLF0:USTF0_20250320
["timestamp","ask_amount","ask_price","bid_price","bid_amount"]
[1742509844179,0.05824317,127.67,127.65,258.61926959]
[1742509845479,0.05824317,127.67,127.66,7.837]
[1742509845675,0.05824317,127.67,127.65,0.05926959]
[1742509846285,7.837,127.66,127.65,0.05926959]
[1742509858297,7.8386,127.64,127.61,9.8926]
[1742509858493,7.8386,127.64,127.62,7.8394]
[1742509859399,7.89502391,127.64,127.62,7.89002216]
[1742509860392,0.05642391,127.64,127.62,7.89002216]
[1742509860902,7.89522391,127.64,127.62,0.05062216]
[1742509861602,7.89522391,127.64,127.62,7.89002216]
[1742509862106,0.05642391,127.64,127.62,0.05062216]
[1742509863307,0.05642391,127.64,127.62,7.88972216]
[1742509863605,0.05642391,127.64,127.62,0.05062216]
[1742509864097,0.05642391,127.64,127.63,7.8389]
[1742509864705,0.04309326,127.66,127.62,0.05062216]
[1742509864906,0.04309326,127.66,127.63,29.24]
[1742509865907,0.1029444,127.66,127.63,29.24]
[1742509869711,39.51643256,127.67,127.63,29.24]
[1742509869901,39.51643256,127.67,127.66,7.837]
[1742509870212,0.10222271,127.68,127.66,29.14]
[1742509870603,0.10222271,127.68,127.67,7.8364]
[1742509870910,0.15308629,127.68,127.67,7.8364]
[1742509871911,0.15308629,127.68,127.66,0.05311044]
[1742509872502,7.98928629,127.68,127.66,0.05311044]
[1742509873211,7.8364,127.67,127.66,0.05311044]
[1742509873707,0.15308629,127.68,127.66,7.89011044]
[1742509873911,0.15308629,127.68,127.66,0.05311044]
[1742509875206,7.8364,127.67,127.66,0.05311044]
[1742509875513,0.15308629,127.68,127.66,7.88991044]
[1742509875912,0.15308629,127.68,127.66,0.05311044]
[1742509876212,0.15308629,127.68,127.67,7.8364]
[1742509879019,7.98888629,127.68,127.66,7.88991044]
[1742509879606,7.8364,127.67,127.66,0.05311044]
[1742509880919,7.8386,127.64,127.61,31.1329]
[1742509881118,29.1,127.66,127.6,260.6467]
[1742509881420,29.1,127.66,127.6,297.587]
[1742509881622,29.1,127.66,127.6,289.7467]
[1742509882011,7.89454841,127.64,127.62,0.05246324]
[1742509882411,0.05584841,127.64,127.62,0.05246324]
[1742509882612,0.05584841,127.64,127.62,7.89136324]
[1742509883222,7.89434841,127.64,127.62,7.89136324]
[1742509884817,0.05584841,127.64,127.62,7.89136324]
[1742509885226,7.89424841,127.64,127.62,7.89136324]
[1742509889826,7.8389,127.63,127.62,0.05246324]
[1742509894229,7.8401,127.61,127.6,258.58]
[1742509894429,7.8401,127.61,127.57,30.9742]
[1742509895128,7.8401,127.61,127.59,7.8412]
[1742509895521,7.89968801,127.61,127.59,7.89454611]
[1742509897531,0.05958801,127.61,127.6,7.8407]
[1742509901131,0.05958801,127.61,127.6,36.6407]
[1742509906828,8.801e-05,127.61,127.6,36.6407]
[1742509908841,0.76078801,127.62,127.61,7.8401]
[1742509909136,30.78622271,127.68,127.6,28.8]
[1742509909654,38.62242271,127.68,127.66,7.8366]
[1742509910144,38.67291915,127.68,127.66,7.89317859]
[1742509910739,9.99291915,127.68,127.66,7.89317859]
[1742509910947,0.15271915,127.68,127.67,7.8364]
[1742509911142,0.15271915,127.68,127.66,0.05657859]
[1742509911539,7.98881915,127.68,127.66,7.89357859]
[1742509912749,7.98881915,127.68,127.67,7.8364]
[1742509913851,0.15271915,127.68,127.67,7.8364]
[1742509914555,7.98851915,127.68,127.66,7.89327859]
[1742509914755,0.15271915,127.68,127.66,0.05657859]
[1742509915354,7.98881915,127.68,127.66,7.89357859]
[1742509917953,0.15271915,127.68,127.67,7.8364]
[1742509919851,1.915e-05,127.68,127.67,7.8364]
[1742509920055,0.30295227,127.7,127.67,7.84]
[1742509920056,5.227e-05,127.7,127.67,7.84]
[1742509920256,5.227e-05,127.7,127.66,28.59657859]
[1742509920557,5.227e-05,127.7,127.69,7.8352]
[1742509920853,5.227e-05,127.7,127.69,36.3552]
[1742509921058,9.776e-05,127.71,127.7,7.8346]
[1742509921255,8.918e-05,127.71,127.7,266.4346]
[1742509921758,0.45921593,127.73,127.7,260.7791]
[1742509922147,0.45921593,127.73,127.72,7.8333]
[1742509922350,0.45921593,127.73,127.72,36.3333]
[1742509936262,0.31951103,127.74,127.73,7.8327]
[1742509937353,1.103e-05,127.74,127.73,7.8327]
[1742509937553,14.41221808,127.76,127.72,28.5]
[1742509937760,0.34060791,127.77,127.72,28.5]
[1742509938149,12.50060791,127.77,127.72,28.5]
[1742509938566,0.05159328,127.76,127.72,28.5]
[1742509938763,12.50060791,127.77,127.72,28.5]
[1742509939166,12.50060791,127.77,127.76,7.8309]
[1742509939465,7.91e-06,127.77,127.76,294.5509]
[1742509943065,0.80233771,127.78,127.77,7.8303]
[1742509950970,0.80233771,127.78,127.76,294.5506]
[1742509951174,0.80233771,127.78,127.76,258.42]
[1742509951677,7.8303,127.77,127.76,258.42]
[1742509953678,0.80233771,127.78,127.76,258.42]
[1742509953872,0.80233771,127.78,127.76,286.62]
[1742509954971,0.80233771,127.78,127.77,7.8303]
[1742509957780,0.80233771,127.78,127.76,258.42]
[1742509959888,7.8303,127.77,127.76,258.42]
[1742509960387,7.8303,127.77,127.76,255.133]
[1742509960589,28.2,127.77,127.71,258.36]
[1742509960789,28.2,127.77,127.71,286.56]
[1742509960979,28.2,127.77,127.73,7.8327]
[1742509961374,7.8318,127.75,127.73,7.8327]
[1742509961788,7.88966037,127.75,127.73,7.8904963]
[1742509961991,0.05786037,127.75,127.73,7.8904963]
[1742509962206,0.05786037,127.75,127.74,7.8321]
[1742509962391,0.05786037,127.75,127.74,36.0321]
[1742509964590,0.05786037,127.75,127.74,28.2]
[1742509964896,0.05786037,127.75,127.74,36.0321]
[1742509965987,18.71848758,127.78,127.74,28.2]
[1742509966294,16.68308758,127.78,127.74,28.2]
[1742509967090,16.68308758,127.78,127.76,7.8305]
[1742509967293,0.06006861,127.77,127.76,7.8305]
[1742509967487,0.06006861,127.77,127.76,7.88220699]
[1742509978504,0.06006861,127.77,127.76,266.24220699]
[1742509990320,0.06006861,127.77,127.76,258.41170699]
[1742509990920,7.89036861,127.77,127.76,258.41170699]
[1742509993126,0.06006861,127.77,127.76,0.05170699]
[1742509993929,0.06006861,127.77,127.76,7.88260699]
[1742509996034,0.06006861,127.77,127.76,35.96260699]
[1742509998128,0.06006861,127.77,127.76,0.05170699]
[1742509998930,7.89036861,127.77,127.76,0.05170699]
[1742510005544,0.06006861,127.77,127.7,286.58]
[1742510005735,32.4426,127.76,127.7,258.38]
[1742510006638,0.05294356,127.74,127.72,0.0582534]
[1742510007239,7.8327,127.73,127.72,0.0582534]
[1742510007442,0.05294356,127.74,127.72,0.0582534]
[1742510007935,7.88544356,127.74,127.72,0.0582534]
[1742510008645,7.88544356,127.74,127.72,7.8914534]
[1742510009631,0.05294356,127.74,127.72,7.8914534]
[1742510009830,0.05294356,127.74,127.73,7.8327]
[1742510013142,7.88524356,127.74,127.72,7.8912534]
[1742510013739,7.88524356,127.74,127.72,0.0582534]
[1742510015344,7.8327,127.73,127.72,0.0582534]
[1742510015546,0.05294356,127.74,127.7,258.38]
[1742510015944,0.05294356,127.74,127.68,7.8354]
[1742510016140,35.09,127.75,127.68,7.8354]
[1742510016741,0.05697997,127.73,127.7,0.05475266]
[1742510017042,28.18,127.72,127.7,0.05475266]
[1742510017248,7.8339,127.71,127.7,0.05475266]
[1742510018433,28.18,127.72,127.66,7.8366]
[1742510018634,2.0748,127.71,127.66,7.8366]
[1742510018839,7.8363,127.68,127.66,7.8366]
[1742510019443,7.88936218,127.68,127.66,7.89375274]
[1742510019644,0.05306218,127.68,127.67,7.8364]
[1742510024050,0.05306218,127.68,127.67,36.0164]
[1742510025956,28.18,127.72,127.71,7.8339]
[1742510026148,1.9981,127.73,127.67,28.18]
[1742510026850,1.9981,127.73,127.68,7.8353]
[1742510027055,0.0506089,127.71,127.69,0.05431488]
[1742510027854,0.0506089,127.71,127.7,7.8346]
[1742510033661,0.0506089,127.71,127.7,35.9346]
[1742510035157,19.98,127.72,127.71,7.8339]
[1742510037360,0.05089718,127.73,127.72,7.8333]
[1742510043357,0.05089718,127.73,127.71,266.3337]
[1742510044068,7.88409718,127.73,127.71,258.5]
[1742510044767,7.88409718,127.73,127.71,266.3338]
[1742510044965,0.05089718,127.73,127.71,266.3338]
[1742510045969,7.88369718,127.73,127.71,266.3338]
[1742510046560,0.05089718,127.73,127.72,7.8333]
[1742510047160,7.88359718,127.73,127.71,266.3336]
[1742510047873,0.05089718,127.73,127.72,7.8333]
[1742510048261,0.74308758,127.78,127.71,258.5]
[1742510048475,0.74308758,127.78,127.76,7.8306]
[1742510049471,0.80276946,127.78,127.76,7.88686164]
[1742510049862,0.80276946,127.78,127.77,7.8303]
[1742510051458,0.39150485,127.79,127.77,35.8703]
[1742510051662,0.39150485,127.79,127.78,7.8297]
[1742510052971,0.39150485,127.79,127.77,35.8699]
[1742510053362,0.39150485,127.79,127.77,28.04]
[1742510053861,0.39150485,127.79,127.77,35.87]
[1742510054473,0.39150485,127.79,127.78,7.8297]
[1742510060172,0.46904343,127.8,127.77,286.46]
[1742510060679,0.46904343,127.8,127.79,7.829]
[1742510069377,0.88773362,127.81,127.8,7.8284]
[1742510069577,0.88773362,127.81,127.8,35.7884]
[1742510073586,0.88773362,127.81,127.79,0.0499336]
[1742510075490,0.88773362,127.81,127.79,27.9499336]
[1742510076291,0.88773362,127.81,127.8,7.8284]
[1742510079592,0.88773362,127.81,127.79,35.7786336]
[1742510080295,8.71563362,127.81,127.79,35.7786336]
[1742510080492,0.88773362,127.81,127.79,35.7786336]
[1742510081294,8.71553362,127.81,127.79,35.7786336]
[1742510081695,0.88773362,127.81,127.8,7.8284]
[1742510083897,8.71593362,127.81,127.79,27.9499336]
[1742510084293,7.8284,127.8,127.79,0.0499336]
[1742510092590,7.8297,127.78,127.77,258.42]
[1742510092794,27.9,127.8,127.77,258.42]
[1742510092988,7.8287,127.8,127.77,258.42]
[1742510093190,3.00773362,127.81,127.77,258.42]
[1742510093507,10.83593362,127.81,127.77,258.42]
[1742510093690,0.0512694,127.8,127.78,0.05114338]
[1742510094302,0.0512694,127.8,127.79,7.8288]
[1742510099511,0.88773362,127.81,127.8,7.8284]
[1742510099903,0.88773362,127.81,127.8,35.7084]
[1742510105314,0.88773362,127.81,127.8,27.88]
[1742510106415,8.71553362,127.81,127.8,27.88]
[1742510107210,7.8285,127.8,127.78,27.91114338]
[1742510107517,7.8285,127.8,127.78,0.05114338]
[1742510107815,0.88773362,127.81,127.78,0.05114338]
[1742510108719,0.88773362,127.81,127.8,7.8284]
[1742510114325,0.88773362,127.81,127.78,27.93114338]
[1742510115020,0.88773362,127.81,127.79,7.8284]
[1742510115221,0.88773362,127.81,127.78,27.93114338]
[1742510115719,0.88773362,127.81,127.8,7.8284]
[1742510118919,0.53965488,127.82,127.78,27.93114338]
[1742510119130,0.53965488,127.82,127.79,2.1321]
[1742510120029,0.50547557,127.83,127.79,2.1321]
[1742510121132,0.05255179,127.82,127.79,2.1321]
[1742510121333,0.50547557,127.83,127.79,2.1321]
[1742510122035,0.50547557,127.83,127.82,7.8272]
[1742510122234,0.50547557,127.83,127.82,35.6472]
[1742510123021,31.03549547,127.84,127.83,7.8266]
[1742510123228,0.56065474,127.85,127.83,258.3]
[1742510124125,0.56065474,127.85,127.84,7.826]
[1742510129238,0.56065474,127.85,127.83,293.9063]
[1742510130039,0.56065474,127.85,127.84,7.826]
[1742510135847,8.38635474,127.85,127.83,293.9062]
[1742510137243,0.56065474,127.85,127.84,7.826]
[1742510168584,0.56065474,127.85,127.83,293.8462]
[1742510169083,8.38625474,127.85,127.83,293.8462]
[1742510169982,8.38625474,127.85,127.83,266.1262]
[1742510170486,0.56065474,127.85,127.84,7.826]
[1742510191199,1.2108885,127.87,127.85,7.8254]
[1742510191406,22.57489834,127.88,127.86,27.68]
[1742510192299,22.57489834,127.88,127.87,7.8241]
[1742510192496,0.66172002,127.89,127.86,27.68]
[1742510192793,0.66172002,127.89,127.86,29.7306]
[1742510192993,0.66172002,127.89,127.88,7.8235]
[1742510207013,1.36920217,127.9,127.89,7.8229]
[1742510207214,1.36920217,127.9,127.89,35.4829]
[1742510213534,0.71165658,127.91,127.9,7.8223]
[1742510226544,0.71165658,127.91,127.88,258.17451468]
[1742510227343,7.8229,127.89,127.88,258.17451468]
[1742510227652,28.37165658,127.91,127.84,27.66]
[1742510227947,2.0648,127.9,127.83,27.66]
[1742510228636,0.05511722,127.88,127.85,0.05450084]
[1742510228944,27.66,127.87,127.85,0.05450084]
[1742510229850,7.8248,127.86,127.85,0.05450084]
[1742510246865,35.4843,127.87,127.85,0.05450084]
[1742510247354,35.4843,127.87,127.85,7.87960084]
[1742510247559,7.87901722,127.88,127.85,7.87960084]
[1742510247760,7.87901722,127.88,127.85,0.05450084]
[1742510248463,0.05511722,127.88,127.85,0.05450084]
[1742510249464,7.87901722,127.88,127.86,7.8248]
[1742510255371,7.87901722,127.88,127.85,0.05450084]
[1742510255570,0.05511722,127.88,127.85,0.05450084]
[1742510257372,0.05511722,127.88,127.85,27.71450084]
[1742510257572,0.05511722,127.88,127.85,29.82250084]
[1742510258169,0.71165658,127.91,127.85,29.82250084]
[1742510258661,12.04,127.9,127.85,29.82250084]
[1742510259468,12.04,127.9,127.89,7.8229]
[1742510261775,0.71165658,127.91,127.88,27.71550591]
[1742510263575,0.71165658,127.91,127.9,7.8223]
[1742510268272,0.71165658,127.91,127.89,27.66]
[1742510268467,0.71165658,127.91,127.88,258.21550591]
[1742510268877,8.53365658,127.91,127.89,7.8229]
[1742510275382,7.8223,127.9,127.89,7.8229]
[1742510276281,8.53365658,127.91,127.89,7.8229]
[1742510278786,7.8227,127.9,127.88,266.03880591]
[1742510280384,7.8229,127.89,127.88,258.21550591]
[1742510281480,7.8229,127.89,127.88,266.03900591]
[1742510282878,7.8225,127.9,127.88,266.03900591]
[1742510286088,7.8229,127.89,127.88,258.21550591]
[1742510286292,7.8229,127.89,127.88,0.05550591]
[1742510290694,7.8229,127.89,127.88,7.87900591]
[1742510290891,7.8229,127.89,127.88,0.05550591]
[1742510301005,38.91,127.9,127.88,0.05550591]
[1742510301301,11.27,127.9,127.88,0.05550591]
[1742510302498,11.27,127.9,127.89,7.8229]
[1742510305823,11.27,127.9,127.88,7.87870591]
[1742510305824,19.0923,127.9,127.88,7.87870591]
[1742510306022,11.27,127.9,127.88,0.05550591]
[1742510306624,7.8229,127.89,127.88,0.05550591]
[1742510307024,7.8243,127.87,127.84,7.8256]
[1742510307224,35.4643,127.87,127.84,7.8256]
[1742510307616,7.8248,127.86,127.83,265.9463]
[1742510308123,7.826,127.84,127.83,258.17609891]
[1742510308325,7.826,127.84,127.83,0.05609891]
[1742510314016,0.05979952,127.86,127.83,0.05609891]
[1742510314626,7.88489952,127.86,127.84,7.826]
[1742510314931,0.05979952,127.86,127.83,0.05609891]
[1742510317132,7.8254,127.85,127.83,0.05609891]
[1742510317333,20.4354,127.85,127.83,0.05609891]
[1742510317834,7.826,127.84,127.83,0.05609891]
[1742510318930,35.466,127.84,127.83,0.05609891]
[1742510319434,27.64,127.84,127.83,0.05609891]
[1742510321038,35.466,127.84,127.83,0.05609891]
[1742510321938,27.64,127.84,127.83,0.05609891]
[1742510322535,35.466,127.84,127.83,0.05609891]
[1742510323336,27.64,127.84,127.83,0.05609891]
[1742510324342,27.64,127.84,127.83,7.88269891]
[1742510330952,23.93,127.85,127.84,7.826]
[1742510331343,11.32,127.85,127.84,7.826]
[1742510333449,11.32,127.85,127.83,7.88239891]
[1742510334452,23.2,127.85,127.83,7.88239891]
[1742510334751,23.2,127.85,127.84,7.826]
[1742510337656,23.2,127.85,127.83,0.05609891]
[1742510338242,7.826,127.84,127.83,0.05609891]
[1742510342751,31.0257,127.85,127.83,0.05609891]
[1742510342951,23.2,127.85,127.83,0.05609891]
[1742510343160,7.826,127.84,127.83,0.05609891]
[1742510343859,31.0257,127.85,127.83,0.05609891]
[1742510346560,31.0257,127.85,127.83,7.88269891]
[1742510346862,23.2,127.85,127.83,7.88269891]
[1742510347064,23.2,127.85,127.83,0.05609891]
[1742510348563,23.2,127.85,127.84,7.826]
[1742510348961,11.88,127.85,127.84,7.826]
[1742510359567,21.42469952,127.86,127.84,7.826]
[1742510361466,13.59979952,127.86,127.84,7.826]
[1742510361770,13.59979952,127.86,127.85,7.8254]
[1742510363171,13.59979952,127.86,127.84,7.8256]
[1742510365074,13.59979952,127.86,127.85,7.8254]
[1742510367963,13.59979952,127.86,127.85,35.4654]
[1742510370966,12.18,127.87,127.86,7.8248]
[1742510376178,0.71165658,127.91,127.85,27.64]
[1742510376683,0.71165658,127.91,127.9,7.8223]
[1742510382084,8.53335658,127.91,127.89,27.64]
[1742510382280,0.71165658,127.91,127.89,27.64]
[1742510382475,0.71165658,127.91,127.88,258.2]
[1742510383075,7.8229,127.89,127.88,258.2]
[1742510384289,7.8229,127.89,127.87,7.87847844]
[1742510384588,7.8226,127.9,127.87,7.87847844]
[1742510384784,7.8226,127.9,127.88,7.8235]
[1742510385183,7.8226,127.9,127.87,0.05437844]
[1742510385389,7.8226,127.9,127.87,7.87817844]
[1742510385685,7.8226,127.9,127.87,0.05437844]
[1742510386578,7.8226,127.9,127.88,7.8235]
[1742510391987,8.53365658,127.91,127.89,7.8229]
[1742510393884,8.53365658,127.91,127.87,0.05437844]
[1742510394093,7.8225,127.9,127.88,7.8232]
[1742510398500,7.823,127.89,127.87,7.87817844]
[1742510404097,0.71165658,127.91,127.87,0.05437844]
[1742510404294,4.85355658,127.91,127.87,0.05437844]
[1742510406000,7.8223,127.9,127.88,7.8232]
[1742510406400,4.85355658,127.91,127.87,0.05437844]
[1742510406606,7.8229,127.89,127.87,7.87827844]
[1742510413406,7.8227,127.9,127.88,7.8235]
[1742510415806,7.8229,127.89,127.87,7.87817844]
[1742510418217,7.8229,127.89,127.88,7.8235]
[1742510419613,7.8229,127.89,127.87,7.87827844]
[1742510426409,4.85355658,127.91,127.87,0.05437844]
[1742510428333,7.8235,127.88,127.87,0.05437844]
[1742510428634,35.4435,127.88,127.87,0.05437844]
[1742510444931,7.8254,127.85,127.84,258.12]
[1742510445132,35.4454,127.85,127.83,7.8262]
[1742510445540,7.826,127.84,127.82,7.8269]
[1742510446043,7.88206554,127.84,127.82,7.88117885]
[1742510448345,7.8266,127.83,127.82,0.05427885]
[1742510461163,7.88246554,127.84,127.82,0.05427885]
[1742510461758,7.88246554,127.84,127.82,7.88147885]
[1742510463354,35.50246554,127.84,127.82,7.88147885]
[1742510463547,7.8266,127.83,127.82,0.05427885]
[1742510466965,35.50226554,127.84,127.82,7.88147885]
[1742510467162,7.88226554,127.84,127.82,7.88147885]
[1742510467461,0.05606554,127.84,127.82,0.05427885]
[1742510467664,0.05606554,127.84,127.83,7.8266]
[1742510476466,7.88206554,127.84,127.82,7.88117885]
[1742510477566,0.05606554,127.84,127.83,7.8266]
[1742510478258,7.88206554,127.84,127.82,7.88107885]
[1742510480574,18.97206554,127.84,127.82,7.88107885]
[1742510480775,28.61206554,127.84,127.82,7.88107885]
[1742510489190,20.78606554,127.84,127.83,7.8266]
[1742510496705,11.14606554,127.84,127.83,7.8266]
[1742510508812,11.14606554,127.84,127.83,7.8266]
[1742510511617,11.14606554,127.84,127.83,35.4266]
[1742510511915,12.06,127.85,127.84,7.826]
[1742510513523,35.4226,127.9,127.87,7.8236]
[1742510513818,27.6,127.9,127.87,7.8236]
[1742510514117,27.6,127.9,127.87,7.87323319]
[1742510514306,35.4224,127.9,127.87,7.87323319]
[1742510514511,27.6,127.9,127.87,7.87323319]
[1742510515020,27.6,127.9,127.87,0.04963319]
[1742510515216,1.9785,127.89,127.87,0.04963319]
[1742510515513,7.8235,127.88,127.87,0.04963319]
[1742510515717,1.9785,127.89,127.8,6.3272]
[1742510515918,1.9894,127.87,127.81,27.6]
[1742510516101,27.6,127.86,127.81,27.6]
[1742510516308,27.6,127.86,127.82,7.8269]
[1742510516809,7.826,127.84,127.83,0.05817796]
[1742510519212,7.826,127.84,127.79,258.2]
[1742510519213,0.04963319,127.85,127.77,43.5808571]
[1742510519514,27.6,127.86,127.74,10.89521427]
[1742510519515,4.18,127.83,127.74,10.89521427]
[1742510519720,7.8313,127.76,127.74,10.89521427]
[1742510519924,27.6,127.77,127.74,10.89521427]
[1742510520424,7.8315,127.75,127.74,10.95166477]
[1742510520922,35.4801825,127.77,127.74,10.95166477]
[1742510521626,27.6494825,127.77,127.74,10.95166477]
[1742510521928,27.6494825,127.77,127.74,0.0564505]
[1742510522825,31.8409825,127.77,127.74,0.0564505]
[1742510523214,7.8314,127.76,127.74,0.0564505]
[1742510523413,27.6,127.75,127.74,0.0564505]
[1742510525019,27.6,127.75,127.74,7.8885505]
[1742510525418,29.8193825,127.77,127.74,7.8885505]
[1742510527031,29.8193825,127.77,127.75,7.8314]
[1742510530134,29.8193825,127.77,127.74,7.8882505]
[1742510530935,29.8193825,127.77,127.75,7.8314]
[1742510532036,29.8193825,127.77,127.74,0.0564505]
[1742510533136,29.8193825,127.77,127.76,7.8309]
[1742510535939,29.8193825,127.77,127.74,0.0564505]
[1742510537039,7.8309,127.76,127.74,0.0564505]
[1742510537241,29.8193825,127.77,127.74,0.0564505]
[1742510539339,7.8314,127.76,127.74,0.0564505]
[1742510539541,27.62,127.75,127.74,0.0564505]
[1742510540540,35.4515,127.75,127.74,0.0564505]
[1742510546542,27.62,127.75,127.74,7.8885505]
[1742510548041,27.62,127.75,127.74,0.0564505]
[1742510548245,35.4515,127.75,127.74,0.0564505]
[1742510549341,27.62,127.75,127.74,0.0564505]
[1742510550443,35.4515,127.75,127.74,0.0564505]
[1742510574479,27.62,127.75,127.74,7.8885505]
[1742510574669,27.62,127.75,127.74,0.0564505]
[1742510575883,35.4515,127.75,127.74,0.0564505]
[1742510576584,35.4515,127.75,127.74,7.8885505]
[1742510577989,35.4515,127.75,127.74,0.0564505]
[1742510580789,0.0494825,127.77,127.74,0.0564505]
[1742510581385,7.8315,127.75,127.74,0.0564505]
[1742510581995,7.8312,127.76,127.74,0.0564505]
[1742510582496,0.0494825,127.77,127.74,0.0564505]
[1742510583192,0.0494825,127.77,127.74,27.6764505]
[1742510584296,12.41,127.78,127.75,1.9988]
[1742510584888,26.14,127.78,127.75,1.9988]
[1742510585285,26.19469169,127.78,127.75,1.9988]
[1742510585486,26.19469169,127.78,127.77,7.8303]
[1742510585997,13.78469169,127.78,127.77,7.8303]
[1742510587399,0.05469169,127.78,127.77,7.8303]
[1742510598806,26.22,127.8,127.76,29.6335]
[1742510599101,26.22,127.8,127.77,2.0359]
[1742510599306,26.22,127.8,127.79,7.829]
[1742510599699,27.6,127.84,127.78,27.6]
[1742510599900,27.6,127.84,127.82,7.8266]
[1742510600100,27.6,127.85,127.8,0.05798983]
[1742510600300,7.8251,127.86,127.8,27.65798983]
[1742510600500,35.4251,127.86,127.8,27.65798983]
[1742510601001,35.4251,127.86,127.84,7.8255]
[1742510601508,27.6,127.86,127.85,7.8254]
[1742510601900,5.87326571,127.87,127.84,0.05978305]
[1742510602095,17.42326571,127.87,127.84,0.05978305]
[1742510602508,11.55,127.87,127.84,0.05978305]
[1742510602703,23.7,127.87,127.84,0.05978305]
[1742510603409,23.7,127.87,127.86,7.8248]
[1742510603609,23.7,127.87,127.84,0.05978305]
[1742510604609,23.7,127.87,127.85,7.8251]
[1742510607513,31.5242,127.87,127.84,7.88548305]
[1742510609512,7.8249,127.86,127.84,7.88548305]
[1742510611714,31.5245,127.87,127.84,7.88548305]
[1742510612108,7.8248,127.86,127.84,7.88548305]
[1742510612914,31.5245,127.87,127.85,7.8252]
[1742510613304,23.7,127.87,127.85,27.58]
[1742510614619,23.7,127.87,127.86,7.8248]
[1742510622719,11.55,127.87,127.86,7.8248]
[1742510630030,12.31,127.88,127.85,27.58]
[1742510630831,0.71165658,127.91,127.86,258.18]
[1742510631332,0.71165658,127.91,127.87,0.04988895]
[1742510631530,0.71165658,127.91,127.88,27.58]
[1742510632736,10.48,127.9,127.89,7.8229]
[1742510634538,10.48,127.9,127.88,35.4032]
[1742510634838,10.48,127.9,127.88,27.58]
[1742510635135,18.3027,127.9,127.88,27.58]
[1742510635935,10.48,127.9,127.88,27.58]
[1742510636434,10.48,127.9,127.89,7.8229]
[1742510647842,5.658e-05,127.91,127.88,27.58]
[1742510648143,1.46968228,127.92,127.88,27.58]
[1742510648542,1.46968228,127.92,127.91,7.8217]
[1742510648747,1.46968228,127.92,127.91,35.3817]
[1742510649341,1.46968228,127.92,127.91,7.8217]
[1742510649538,1.46968228,127.92,127.9,7.87819907]
[1742510650244,1.46968228,127.92,127.91,7.8217]
[1742510650944,1.46968228,127.92,127.9,7.87789907]
[1742510651335,1.46968228,127.92,127.91,7.8217]
[1742510652746,1.46968228,127.92,127.9,7.87789907]
[1742510653646,9.29138228,127.92,127.9,0.05599907]
[1742510655041,7.8217,127.91,127.9,0.05599907]
[1742510657354,1.46968228,127.92,127.9,0.05599907]
[1742510658153,1.46968228,127.92,127.91,7.8217]
[1742510664250,1.46968228,127.92,127.9,0.05599907]
[1742510665353,7.8217,127.91,127.9,0.05599907]
[1742510667853,35.3817,127.91,127.9,0.05599907]
[1742510668049,37.5355,127.91,127.9,0.05599907]
[1742510677163,29.7138,127.91,127.9,0.05599907]
[1742510677363,1.46968228,127.92,127.9,0.05599907]
[1742510677953,1.46968228,127.92,127.91,7.8217]
[1742510684158,1.46968228,127.92,127.9,7.87789907]
[1742510685969,1.46968228,127.92,127.91,7.8217]
[1742510688670,9.29078228,127.92,127.91,7.8217]
[1742510689369,9.29078228,127.92,127.9,7.87799907]
[1742510690069,7.8217,127.91,127.9,0.05599907]
[1742510700468,7.8241,127.87,127.86,258.18]
[1742510700675,27.56,127.89,127.82,31.6955]
[1742510700972,27.56,127.89,127.83,7.8263]
[1742510701178,4.2865,127.88,127.83,7.8263]
[1742510701377,27.56,127.87,127.81,258.14]
[1742510701579,7.8257,127.85,127.84,0.06029136]
[1742510702278,7.8251,127.86,127.84,0.06029136]
[1742510702478,27.61495416,127.87,127.84,0.06029136]
[1742510702780,27.61495416,127.87,127.84,7.88619136]
[1742510702979,35.43935416,127.87,127.84,7.88619136]
[1742510703482,27.61495416,127.87,127.85,7.8253]
[1742510704879,35.43915416,127.87,127.84,7.88599136]
[1742510705779,7.8249,127.86,127.84,7.88599136]
[1742510706182,35.43945416,127.87,127.84,7.88599136]
[1742510706575,35.43945416,127.87,127.85,7.8253]
[1742510706776,0.05495416,127.87,127.84,27.62029136]